bitfinex/quotes_SOLUSD_20220210
["timestamp","ask_amount","ask_price","bid_price","bid_amount"]
[1644536116147,46.90842708,106.81,106.71,81.44459029]
[1644536116739,47.15842708,106.81,106.71,81.69459029]
[1644536118045,47.15842708,106.81,106.71,86.37759029]
[1644536118445,76.00572395,106.83,106.71,86.37759029]
[1644536118657,47.93472395,106.83,106.71,81.69459029]
[1644536118845,1.27322395,106.85,106.75,14.0477]
[1644536119049,1.27322395,106.85,106.76,11.13]
[1644536119246,1.27322395,106.86,106.76,13.39294142]
[1644536119447,44.96284912,106.84,106.77,48.35302039]
[1644536119847,44.96284912,106.84,106.77,59.48302039]
[1644536120752,1.27322395,106.86,106.78,14.0468]
[1644536120950,48.13702395,106.87,106.78,25.5958]
[1644536121150,52.81702395,106.87,106.78,27.85874142]
[1644536121351,52.81702395,106.87,106.78,27.60874142]
[1644536121752,47.70745973,106.86,106.79,39.94000945]
[1644536122151,46.8638,106.87,106.82,37.35957465]
[1644536122350,1.27322395,106.88,106.82,44.51957465]
[1644536122750,1.27322395,106.89,106.82,44.51957465]
[1644536123252,25.48042395,106.9,106.82,60.57691607]
[1644536123454,1.27322395,106.9,106.82,60.57691607]
[1644536123750,49.24962395,106.91,106.82,60.57691607]
[1644536124349,49.24962395,106.91,106.82,60.82691607]
[1644536124549,47.9764,106.91,106.82,60.82691607]
[1644536125150,93.39980371,106.91,106.82,60.82691607]
[1644536125348,44.92340371,106.91,106.82,60.82691607]
[1644536125757,44.92340371,106.91,106.82,60.57691607]
[1644536125951,44.92340371,106.91,106.82,51.40397465]
[1644536126355,44.92340371,106.91,106.82,37.35957465]
[1644536126356,4.678,106.9,106.82,37.35957465]
[1644536126552,1.27322395,106.91,106.82,39.62251607]
[1644536126750,1.27322395,106.93,106.82,47.24251607]
[1644536126955,14.0405,106.93,106.82,47.24251607]
[1644536127153,15.31372395,106.93,106.82,47.24251607]
[1644536127351,34.27207549,106.92,106.82,46.99251607]
[1644536127552,4.678,106.91,106.82,14.0438]
[1644536127751,4.678,106.91,106.79,11.13]
[1644536127752,7.15922154,106.91,106.79,11.13]
[1644536127952,46.2174,106.9,106.79,17.13]
[1644536128154,18.725,106.89,106.79,17.13]
[1644536128550,48.42181993,106.88,106.79,11.13]
[1644536128754,4.68,106.87,106.77,48.83554142]
[1644536128951,4.68,106.87,106.77,2.01294142]
[1644536129353,4.68,106.87,106.75,14.04648595]
[1644536129553,37.33957956,106.86,106.76,37.73903362]
[1644536129756,35.6194195,106.84,106.78,14.0482]
[1644536129952,35.6194195,106.84,106.78,58.07584122]
[1644536130954,35.6194195,106.84,106.78,14.0482]
[1644536131156,44.6634195,106.84,106.73,46.8397]
[1644536131358,44.6634195,106.84,106.71,11.13]
[1644536131359,4.681,106.83,106.71,11.13]
[1644536131556,4.681,106.83,106.73,2.0236982]
[1644536131756,4.931,106.83,106.73,2.0236982]
[1644536131956,38.38138797,106.82,106.74,46.05335259]
[1644536132158,4.682,106.81,106.71,2.0236982]
[1644536132358,51.7192,106.81,106.71,2.0236982]
[1644536132557,65.7759,106.81,106.71,16.0805982]
[1644536132763,65.7759,106.81,106.71,16.3305982]
[1644536133159,41.27447889,106.8,106.72,47.34387133]
[1644536133562,41.27447889,106.8,106.73,2.02374199]
[1644536133763,4.683,106.83,106.74,47.60383327]
[1644536133764,18.7376,106.83,106.74,47.60383327]
[1644536133965,133.99282395,106.86,106.74,47.60383327]
[1644536133966,4.682,106.84,106.74,47.60383327]
[1644536134162,48.1365,106.85,106.75,2.02374199]
[1644536134362,4.681,106.84,106.75,2.02374199]
[1644536134763,41.33038134,106.83,106.76,38.94746931]
[1644536135166,41.33038134,106.83,106.75,2.02374199]
[1644536135471,4.682,106.82,106.72,16.07022794]
[1644536135671,13.04,106.82,106.72,2.02374199]
[1644536135871,36.5884,106.82,106.72,2.02374199]
[1644536136071,46.61577697,106.81,106.73,38.84867519]
[1644536136373,41.97306313,106.79,106.73,38.84867519]
[1644536137788,41.97306313,106.79,106.73,40.87241718]
[1644536140494,23.2984,106.82,106.73,40.87241718]
[1644536140694,23.2984,106.82,106.73,54.92731718]
[1644536141701,48.54562203,106.81,106.73,54.92731718]
[1644536142093,48.54562203,106.81,106.73,66.05731718]
[1644536142995,43.86362203,106.81,106.73,66.05731718]
[1644536144499,23.2984,106.82,106.73,66.05731718]
[1644536145498,40.18632631,106.81,106.73,27.20864199]
[1644536145699,40.18632631,106.81,106.71,16.08024199]
[1644536145896,64.49592631,106.81,106.71,16.08024199]
[1644536146498,64.49592631,106.81,106.71,56.65935594]
[1644536146699,78.80242631,106.81,106.71,2.02374199]
[1644536146901,82.3068718,106.81,106.69,20.76454199]
[1644536147099,23.2639,106.8,106.69,18.7408]
[1644536147301,4.684,106.79,106.69,14.0588]
[1644536147500,23.2639,106.8,106.7,2.02212081]
[1644536147799,23.2639,106.8,106.72,14.0559]
[1644536147800,45.15925601,106.79,106.72,14.0559]
[1644536148002,49.84225601,106.79,106.72,49.55660362]
[1644536148199,49.84225601,106.79,106.68,13.15212081]
[1644536149103,63.90145601,106.79,106.68,27.21362081]
[1644536149301,74.91145601,106.79,106.68,11.13]
[1644536149505,77.14267755,106.79,106.68,11.13]
[1644536149703,76.18467996,106.79,106.68,11.13]
[1644536149904,74.91145601,106.79,106.68,11.13]
[1644536150301,74.91145601,106.79,106.68,53.54549486]
[1644536150503,63.90145601,106.79,106.68,55.56761567]
[1644536150703,63.90145601,106.79,106.68,55.81761567]
[1644536151003,63.90145601,106.79,106.68,55.56761567]
[1644536151205,63.90145601,106.79,106.68,11.13]
[1644536151605,63.90145601,106.79,106.68,13.15212081]
[1644536151805,59.21845601,106.79,106.68,13.15212081]
[1644536152107,59.21845601,106.79,106.69,44.00230289]
[1644536152305,4.684,106.78,106.69,58.06220289]
[1644536152604,34.99609629,106.77,106.69,14.0599]
[1644536152805,35.24609629,106.77,106.69,14.0599]
[1644536153107,4.684,106.76,106.69,14.0599]
[1644536153504,41.70164231,106.75,106.69,49.39908513]
[1644536154805,41.70164231,106.75,106.69,14.0599]
[1644536155703,41.95164231,106.75,106.69,14.0599]
[1644536156303,41.95164231,106.75,106.67,14.0621]
[1644536156504,46.63564231,106.75,106.67,14.0621]
[1644536157508,46.63564231,106.75,106.68,40.86079687]
[1644536157710,24.4668,106.77,106.68,65.19089687]
[1644536157908,24.4668,106.77,106.69,2.02210594]
[1644536158308,4.684,106.79,106.69,2.27210594]
[1644536158510,4.684,106.8,106.69,2.27210594]
[1644536158709,43.05259679,106.79,106.7,2.02210594]
[1644536158909,40.93712314,106.77,106.68,51.99079687]
[1644536159309,41.18712314,106.77,106.68,51.99079687]
[1644536159711,40.93712314,106.77,106.68,51.99079687]
[1644536159916,54.99782314,106.77,106.68,11.13]
[1644536160511,4.684,106.76,106.68,11.13]
[1644536161010,46.42638452,106.75,106.65,39.7073]
[1644536161211,4.686,106.74,106.67,14.0636]
[1644536161414,42.68573474,106.73,106.67,14.0636]
[1644536163314,42.68573474,106.73,106.68,56.27848391]
[1644536163515,42.68573474,106.73,106.68,23.6894]
[1644536164414,42.68573474,106.73,106.68,14.0624]
[1644536164812,42.68573474,106.73,106.67,14.0639]
[1644536165016,42.93573474,106.73,106.67,14.0639]
[1644536165813,42.93573474,106.73,106.67,20.0639]
[1644536166014,42.93573474,106.73,106.67,14.0639]
[1644536166915,42.68573474,106.73,106.67,14.0639]
[1644536167317,27.3129,106.76,106.68,36.63997111]
[1644536167520,22.6269,106.76,106.7,14.06]
[1644536167717,27.3109,106.76,106.7,14.06]
[1644536168316,35.29748443,106.75,106.7,14.06]
[1644536169518,35.29748443,106.75,106.7,50.79790519]
[1644536169716,35.29748443,106.75,106.7,14.06]
[1644536169917,35.29748443,106.75,106.69,14.0619]
[1644536170416,35.54748443,106.75,106.69,14.0619]
[1644536170718,35.54748443,106.75,106.69,48.40387626]
[1644536172216,22.6269,106.76,106.69,48.40387626]
[1644536172416,22.6269,106.76,106.69,59.78187626]
[1644536172821,22.6269,106.76,106.69,25.4399]
[1644536173019,22.6269,106.76,106.69,14.0619]
[1644536173822,40.15398059,106.75,106.69,57.37333554]
[1644536174321,40.15398059,106.75,106.69,14.0619]
[1644536174722,44.83798059,106.75,106.69,14.0619]
[1644536175122,44.83798059,106.75,106.68,14.0629]
[1644536175328,58.90078059,106.75,106.68,14.0629]
[1644536175523,58.90078059,106.75,106.66,48.49441714]
[1644536176730,58.90078059,106.75,106.67,14.0643]
[1644536177130,58.90078059,106.75,106.68,35.97482235]
[1644536177744,60.17400454,106.75,106.68,35.97482235]
[1644536178548,55.49000454,106.75,106.66,11.13]
[1644536178748,4.684,106.74,106.68,14.0631]
[1644536179550,35.45488777,106.73,106.69,40.13246621]
[1644536180251,35.45488777,106.73,106.69,54.19456621]
[1644536180650,35.45488777,106.73,106.69,14.0621]
[1644536180849,35.45488777,106.73,106.66,58.0043]
[1644536181250,35.45488777,106.73,106.68,14.0632]
[1644536181649,35.45488777,106.73,106.69,40.0422857]
[1644536181851,35.45488777,106.73,106.67,46.8703]
[1644536182052,35.45488777,106.73,106.64,4.684]
[1644536182251,35.45488777,106.73,106.64,15.814]
[1644536182652,35.45488777,106.73,106.67,14.0642]
[1644536182854,42.97821197,106.71,106.64,15.814]
[1644536183055,42.97821197,106.71,106.64,4.684]
[1644536183353,42.97821197,106.71,106.59,1.31912839]
[1644536183354,4.687,106.7,106.59,1.31912839]
[1644536183552,0.30387549,106.68,106.55,12.44912839]
[1644536183751,4.689,106.67,106.58,14.0745]
[1644536183953,1.57709944,106.68,106.58,14.0745]
[1644536184155,1.27322395,106.68,106.58,14.0745]
[1644536184353,36.1948575,106.67,106.59,47.23114219]
[1644536184551,51.8815,106.69,106.59,57.11914219]
[1644536184753,47.4425,106.69,106.59,67.80714219]
[1644536185153,47.4425,106.69,106.59,68.05714219]
[1644536185555,86.68198333,106.69,106.59,68.05714219]
[1644536185753,86.68198333,106.69,106.6,14.0703]
[1644536185954,86.68198333,106.69,106.61,43.50044467]
[1644536186855,86.68198333,106.69,106.55,149.2269]
[1644536187055,4.688,106.68,106.58,6.0]
[1644536187257,18.7605,106.68,106.58,20.0723]
[1644536187857,40.85634644,106.67,106.59,45.18965838]
[1644536188260,41.10634644,106.67,106.59,45.18965838]
[1644536191265,47.1925,106.69,106.59,59.51155838]
[1644536191470,81.084,106.71,106.59,69.3588937]
[1644536191666,55.30662395,106.73,106.59,86.4888937]
[1644536191869,54.0334,106.73,106.59,95.18335696]
[1644536192071,54.0334,106.73,106.6,92.79]
[1644536192270,37.75839918,106.72,106.63,14.0635]
[1644536192466,37.75839918,106.72,106.64,48.77947975]
[1644536192666,42.44439918,106.72,106.64,48.77947975]
[1644536192877,42.44439918,106.72,106.64,49.02947975]
[1644536193672,37.75839918,106.72,106.64,49.02947975]
[1644536193869,37.75839918,106.72,106.66,48.02806336]
[1644536194176,4.686,106.72,106.66,48.02806336]
[1644536195281,5.95922395,106.76,106.66,72.37296336]
[1644536195470,5.95922395,106.77,106.66,91.52129868]
[1644536195672,1.27322395,106.77,106.66,91.52129868]
[1644536195870,1.27322395,106.78,106.66,91.52129868]
[1644536196073,4.684,106.77,106.67,92.79]
[1644536196271,1.27322395,106.79,106.7,14.055]
[1644536196497,1.27322395,106.79,106.7,35.584]
[1644536196675,5.95722395,106.81,106.7,37.85233532]
[1644536197273,35.00127493,106.8,106.71,40.23533707]
[1644536197472,35.00127493,106.8,106.73,14.0536]
[1644536197675,4.684,106.81,106.74,48.03844084]
[1644536197875,1.27322395,106.81,106.74,48.03844084]
[1644536198374,30.06752395,106.82,106.74,48.03844084]
[1644536198578,43.32789002,106.81,106.74,48.03844084]
[1644536198776,44.85111397,106.81,106.74,62.09184084]
[1644536200177,43.57789002,106.81,106.74,62.09184084]
[1644536200378,4.682,106.8,106.74,62.09184084]
[1644536200577,35.5287701,106.79,106.74,62.09184084]
[1644536201778,1.27322395,106.82,106.74,62.09184084]
[1644536201979,5.95622395,106.83,106.74,84.23884084]
[1644536202180,1.27322395,106.84,106.74,90.23884084]
[1644536202881,37.61059872,106.83,106.74,90.23884084]
[1644536203882,4.682,106.84,106.74,90.23884084]
[1644536204081,49.3212026,106.85,106.74,92.25717616]
[1644536204279,1.3154026,106.85,106.74,92.25717616]
[1644536204487,0.04217865,106.85,106.74,92.25717616]
[1644536204684,0.04217865,106.86,106.74,92.25717616]
[1644536204881,43.48162037,106.86,106.75,92.79]
[1644536205081,43.48162037,106.86,106.78,14.0454]
[1644536205283,4.681,106.85,106.78,55.21611131]
[1644536205480,39.56518167,106.84,106.78,41.17071131]
[1644536205680,4.681,106.83,106.78,41.17071131]
[1644536205882,39.56518167,106.84,106.78,41.17071131]
[1644536206781,39.56518167,106.84,106.78,55.21881131]
[1644536206981,44.24618167,106.84,106.78,55.21881131]
[1644536207585,4.681,106.84,106.78,55.21881131]
[1644536207783,23.39837865,106.86,106.78,55.21881131]
[1644536207784,28.07937865,106.86,106.78,55.21881131]
[1644536207985,28.0372,106.86,106.78,55.21881131]
[1644536208486,37.98073508,106.85,106.78,55.21881131]
[1644536210691,4.68,106.84,106.78,55.21881131]
[1644536211806,36.86278201,106.83,106.78,55.21881131]
[1644536212006,36.86278201,106.83,106.78,14.0481]
[1644536212208,36.86278201,106.83,106.76,14.0494]
[1644536212409,39.09400355,106.83,106.76,14.0494]
[1644536212606,36.86278201,106.83,106.76,14.0494]
[1644536213007,36.86278201,106.83,106.77,42.84276045]
[1644536213207,4.681,106.82,106.77,42.84276045]
[1644536213808,36.86278201,106.83,106.77,56.89216045]
[1644536214210,36.86278201,106.83,106.72,46.8397]
[1644536214408,4.682,106.82,106.72,46.8397]
[1644536215306,42.75783454,106.81,106.73,41.7745393]
[1644536215708,42.75783454,106.81,106.75,14.051]
[1644536215910,42.75783454,106.81,106.76,48.07134958]
[1644536216914,4.682,106.82,106.76,48.07134958]
[1644536217110,0.04217865,106.84,106.76,62.12194958]
[1644536217313,4.682,106.85,106.76,62.12194958]
[1644536217515,4.682,106.85,106.73,59.8132]
[1644536217811,3.54662414,106.84,106.73,48.6832]
[1644536218013,18.7359,106.83,106.73,62.7368]
[1644536218210,21.00930019,106.83,106.73,62.7368]
[1644536218411,21.25930019,106.83,106.73,62.7368]
[1644536218611,39.36203408,106.82,106.74,36.4852073]
[1644536218812,4.682,106.81,106.74,36.4852073]
[1644536219111,36.29633656,106.8,106.73,14.0536]
[1644536219310,36.29633656,106.8,106.7,82.4196]
[1644536219311,4.683,106.79,106.65,47.4464]
[1644536219517,5.95622395,106.79,106.65,72.504]
[1644536219716,46.4962,106.78,106.65,80.52233532]
[1644536219912,4.684,106.77,106.65,80.52233532]
[1644536220111,39.16549273,106.76,106.66,48.34041244]
[1644536220312,39.16549273,106.76,106.66,54.34041244]
[1644536220712,39.16549273,106.76,106.69,14.059]
[1644536220910,39.16549273,106.76,106.7,40.03633955]
[1644536221712,39.16549273,106.76,106.7,54.09573955]
[1644536221911,47.76942395,106.78,106.7,54.09573955]
[1644536221912,46.4962,106.78,106.7,56.11407487]
[1644536222113,1.27322395,106.79,106.7,56.36407487]
[1644536222314,1.27322395,106.8,106.7,56.36407487]
[1644536222510,30.39462395,106.81,106.7,56.36407487]
[1644536222710,30.39462395,106.81,106.7,62.36407487]
[1644536222913,41.01512237,106.8,106.7,62.36407487]
[1644536223114,41.01512237,106.8,106.7,56.36407487]
[1644536223313,30.39462395,106.81,106.7,62.36407487]
[1644536223513,5.95722395,106.81,106.71,11.13]
[1644536223713,4.684,106.81,106.74,14.0513]
[1644536223913,53.08822395,106.82,106.74,14.0513]
[1644536224114,48.40622395,106.82,106.74,16.06963532]
[1644536224313,92.17872284,106.82,106.75,47.92921373]
[1644536224514,1.27322395,106.81,106.75,47.92921373]
[1644536224716,48.40622395,106.82,106.75,47.92921373]
[1644536224914,48.40622395,106.82,106.77,14.0504]
[1644536225517,1.27322395,106.81,106.77,14.0504]
[1644536225716,1.27322395,106.81,106.77,52.31369552]
[1644536226818,1.27322395,106.82,106.77,52.31369552]
[1644536227019,1.27322395,106.83,106.77,65.49403084]
[1644536227227,1.27322395,106.84,106.77,65.74403084]
[1644536227618,1.27322395,106.84,106.77,82.87403084]
[1644536228019,1.27322395,106.85,106.77,71.74403084]
[1644536228219,1.27322395,106.85,106.78,11.13]
[1644536228419,1.27322395,106.85,106.8,14.0439]
[1644536228620,1.27322395,106.85,106.8,23.5339]
[1644536228821,1.27322395,106.86,106.81,40.968553]
[1644536230724,1.27322395,106.86,106.82,14.0423]
[1644536230923,1.27322395,106.86,106.83,48.51595906]
[1644536231426,2.58929566,106.89,106.83,48.51595906]
[1644536231624,4.72117865,106.9,106.83,48.76595906]
[1644536231625,0.04217865,106.9,106.83,48.76595906]
[1644536231825,2.58929566,106.91,106.83,50.78429438]
[1644536232025,2.58929566,106.92,106.83,50.78429438]
[1644536232227,37.55913114,106.92,106.83,54.51595906]
[1644536232627,37.55913114,106.92,106.83,48.76595906]
[1644536232825,37.55913114,106.92,106.83,62.55795906]
[1644536233226,40.65363193,106.9,106.83,62.55795906]
[1644536233826,40.90363193,106.9,106.83,62.55795906]
[1644536234026,45.91783842,106.88,106.83,62.55795906]
[1644536234428,4.678,106.89,106.83,62.55795906]
[1644536235230,2.88147431,106.9,106.83,62.55795906]
[1644536235430,35.16602407,106.89,106.83,62.55795906]
[1644536235632,39.84502407,106.89,106.83,62.55795906]
[1644536236031,4.679,106.9,106.83,62.55795906]
[1644536236232,4.679,106.9,106.83,70.19695906]
[1644536236731,4.929,106.9,106.83,70.19695906]
[1644536236930,41.08295574,106.9,106.83,70.19695906]
[1644536237131,40.83295574,106.9,106.83,70.19695906]
[1644536237333,36.15395574,106.9,106.83,70.44695906]
[1644536237930,22.6313,106.91,106.83,70.44695906]
[1644536238533,22.8813,106.91,106.83,70.44695906]
[1644536239034,0.25,106.91,106.83,70.44695906]
[1644536239232,0.25,106.91,106.83,72.46529438]
[1644536239432,0.25,106.91,106.84,11.13]
[1644536239633,4.678,106.92,106.86,14.0368]
[1644536239837,4.678,106.92,106.87,42.8804451]
[1644536240737,4.678,106.92,106.87,57.1672451]
[1644536240938,4.71817865,106.95,106.87,57.1672451]
[1644536241137,56.35597431,106.96,106.87,58.93558042]
[1644536241343,56.35597431,106.96,106.89,37.2865323]
[1644536241344,49.09067865,106.96,106.89,37.2865323]
[1644536241534,4.676,106.96,106.89,47.2965323]
[1644536241732,41.58546337,106.95,106.89,47.2965323]
[1644536242133,46.26146337,106.95,106.89,47.2965323]
[1644536242535,4.676,106.95,106.89,47.2965323]
[1644536242734,4.926,106.95,106.89,37.2865323]
[1644536245149,23.2162,106.97,106.89,58.7031323]
[1644536245355,23.2162,106.97,106.89,60.97146762]
[1644536245546,0.04217865,106.98,106.89,78.10146762]
[1644536245747,58.65354246,106.99,106.89,78.10146762]
[1644536245949,63.32854246,106.99,106.89,78.10146762]
[1644536246148,58.65354246,106.99,106.89,69.96746762]
[1644536246352,38.25505212,106.97,106.89,50.8191323]
[1644536246548,46.97203616,106.95,106.89,50.8191323]
[1644536246749,47.22203616,106.95,106.89,50.8191323]
[1644536247250,47.22203616,106.95,106.89,14.0326]
[1644536247449,49.4532577,106.95,106.87,14.0347]
[1644536247656,4.676,106.94,106.87,14.0347]
[1644536248053,6.90722154,106.94,106.87,14.0347]
[1644536248253,38.82685957,106.93,106.88,42.8029165]
[1644536249453,4.676,106.92,106.88,42.8029165]
[1644536249653,0.29217865,106.95,106.88,42.8029165]
[1644536249855,23.07897865,106.96,106.88,50.5349165]
[1644536250054,4.676,106.95,106.88,50.5349165]
[1644536250256,23.0368,106.96,106.85,11.13]
[1644536250457,4.676,106.94,106.86,14.0361]
[1644536250656,4.676,106.95,106.86,14.0361]
[1644536250953,2.23122154,106.94,106.86,14.0361]
[1644536251156,40.09396997,106.93,106.86,62.36018829]
[1644536251355,4.676,106.92,106.85,14.0385]
[1644536251556,12.087,106.92,106.81,11.13]
[1644536251762,24.8732,106.91,106.81,17.13]
[1644536251956,4.679,106.9,106.81,17.13]
[1644536252355,36.73601744,106.89,106.82,35.51555849]
[1644536252556,36.73601744,106.89,106.8,57.9337]
[1644536252785,4.68,106.88,106.78,11.13]
[1644536252960,6.95340019,106.88,106.77,47.0897]
[1644536253458,4.72217865,106.88,106.77,47.0897]
[1644536253657,44.29376246,106.87,106.78,38.12023975]
[1644536254257,44.29376246,106.87,106.78,38.37023975]
[1644536254457,44.29376246,106.87,106.8,46.57096874]
[1644536254658,48.97376246,106.87,106.8,46.57096874]
[1644536254857,0.25,106.87,106.8,46.57096874]
[1644536255658,0.25,106.87,106.8,60.61556874]
[1644536256059,48.50653374,106.88,106.8,60.61556874]
[1644536256258,4.93,106.88,106.8,60.61556874]
[1644536256460,4.93,106.88,106.8,60.86556874]
[1644536256659,4.93,106.88,106.8,60.61556874]
[1644536257261,0.25,106.88,106.8,60.61556874]
[1644536257462,74.03934152,106.89,106.8,60.86556874]
[1644536257659,74.24716287,106.89,106.8,60.86556874]
[1644536258162,27.9136,106.89,106.8,60.86556874]
[1644536258365,27.9136,106.89,106.8,62.88390406]
[1644536258562,23.2346,106.89,106.8,62.88390406]
[1644536258963,29.31027865,106.9,106.8,74.01390406]
[1644536259162,24.63127865,106.9,106.8,74.01390406]
[1644536259362,45.58391197,106.89,106.8,0.00293532]
[1644536259563,45.58391197,106.89,106.71,23.5564]
[1644536259564,3.0,106.85,106.68,47.4805]
[1644536259764,11.13,106.84,106.68,47.4805]
[1644536259969,48.104,106.83,106.68,47.4805]
[1644536260168,4.683,106.82,106.68,58.6105]
[1644536260466,35.50758665,106.81,106.69,48.60413583]
[1644536260663,0.25,106.82,106.69,59.73413583]
[1644536261068,7.31447431,106.86,106.69,65.73413583]
[1644536261266,7.31447431,106.86,106.7,25.38414151]
[1644536261267,0.04217865,106.86,106.7,25.38414151]
[1644536261465,53.44447865,106.87,106.71,11.13]
[1644536261766,0.04217865,106.86,106.72,45.44790753]
[1644536261966,0.04217865,106.87,106.74,45.1423082]
[1644536262164,0.04217865,106.86,106.74,45.1423082]
[1644536262364,43.69075012,106.85,106.74,56.5223082]
[1644536262565,39.00975012,106.85,106.74,62.5223082]
[1644536262765,43.19365218,106.83,106.74,62.5223082]
[1644536263166,43.44365218,106.83,106.75,14.0436]
[1644536263367,0.25,106.83,106.75,14.2936]
[1644536264368,49.36030129,106.84,106.76,47.3242745]
[1644536264567,4.931,106.84,106.76,61.3731745]
[1644536264767,4.931,106.84,106.76,61.6231745]
[1644536264967,0.25,106.84,106.76,61.6231745]
[1644536265368,28.3848,106.85,106.76,61.6231745]
[1644536265972,46.91059532,106.84,106.76,61.6231745]
[1644536266169,46.91059532,106.84,106.76,61.3731745]
[1644536266170,47.16059532,106.84,106.76,61.3731745]
[1644536266374,47.16059532,106.84,106.76,67.3731745]
[1644536266669,47.16059532,106.84,106.76,47.3242745]
[1644536267069,47.16059532,106.84,106.76,53.3242745]
[1644536267271,4.681,106.83,106.76,47.3242745]
[1644536267471,51.84159532,106.84,106.76,47.3242745]
[1644536267894,4.681,106.84,106.76,47.3242745]
[1644536268101,23.4538,106.85,106.76,47.5742745]
[1644536268299,4.681,106.84,106.76,47.5742745]
[1644536268496,23.4538,106.85,106.76,47.5742745]
[1644536269498,35.92372657,106.84,106.76,61.6228745]
[1644536269700,40.60472657,106.84,106.76,61.6228745]
[1644536269900,40.85472657,106.84,106.76,61.6228745]
[1644536270100,43.08594811,106.84,106.76,47.3242745]
[1644536270309,52.29894811,106.84,106.72,11.13]
[1644536270502,37.813,106.83,106.72,25.1839]
[1644536270703,37.813,106.83,106.72,25.4339]
[1644536270900,38.063,106.83,106.72,25.4339]
[1644536271301,36.31948722,106.82,106.73,35.66641147]
[1644536271501,41.00148722,106.82,106.73,35.66641147]
[1644536271703,41.25148722,106.82,106.73,35.66641147]
[1644536273505,36.56948722,106.82,106.73,49.72001147]
[1644536274104,0.25,106.82,106.73,60.85001147]
[1644536274307,28.4401,106.83,106.73,60.85001147]
[1644536274505,23.7581,106.83,106.73,159.64001147]
[1644536274710,23.7581,106.83,106.73,159.89001147]
[1644536275107,24.59898889,106.86,106.73,169.55501147]
[1644536275606,39.98059427,106.85,106.73,169.55501147]
[1644536276205,39.98059427,106.85,106.73,67.10001147]
[1644536276606,40.23059427,106.85,106.73,67.10001147]
[1644536276806,44.91259427,106.85,106.73,67.10001147]
[1644536277007,69.33489427,106.85,106.74,92.79]
[1644536277308,64.65289427,106.85,106.78,36.77601899]
[1644536277808,64.65289427,106.85,106.78,42.77601899]
[1644536278007,38.1853644,106.83,106.78,42.77601899]
[1644536278308,38.1853644,106.83,106.78,56.82531899]
[1644536278309,38.4353644,106.83,106.78,56.82531899]
[1644536278510,38.4353644,106.83,106.78,14.0493]
[1644536279707,38.4353644,106.83,106.79,40.4475654]
[1644536279907,0.25,106.83,106.79,54.4962654]
[1644536280310,24.4223,106.85,106.79,54.4962654]
[1644536280908,39.90661152,106.84,106.79,54.4962654]
[1644536281109,39.90661152,106.84,106.77,14.0507]
[1644536281308,4.681,106.83,106.77,14.0507]
[1644536281509,39.90661152,106.84,106.77,14.0507]
[1644536281712,24.4223,106.85,106.77,14.0507]
[1644536281910,24.4223,106.85,106.77,14.3007]
[1644536282109,24.6723,106.85,106.77,14.3007]
[1644536282712,24.59898889,106.86,106.78,46.16153262]
[1644536282914,0.04258889,106.87,106.8,14.0446]
[1644536283112,0.04258889,106.89,106.8,7.353]
[1644536283314,0.04258889,106.9,106.81,92.79]
[1644536283516,6.16733213,106.92,106.82,11.13]
[1644536283719,0.04258889,106.91,106.82,11.13]
[1644536283917,42.08881816,106.91,106.83,48.29613848]
[1644536284315,42.08881816,106.91,106.83,54.54613848]
[1644536284717,42.08881816,106.91,106.83,68.58703848]
[1644536284919,42.08881816,106.91,106.83,79.96203848]
[1644536285517,42.08881816,106.91,106.83,73.96203848]
[1644536286116,42.33881816,106.91,106.83,73.96203848]
[1644536286319,0.04258889,106.92,106.84,11.13]
[1644536286517,4.72058889,106.93,106.84,103.92]
[1644536286724,0.04258889,106.93,106.86,14.033]
[1644536286918,0.04258889,106.95,106.87,11.13]
[1644536287121,0.04258889,106.96,106.88,92.79]
[1644536287321,0.04258889,106.97,106.89,11.13]
[1644536287521,0.04258889,106.98,106.9,46.0685803]
[1644536287721,44.78063344,106.99,106.92,14.0296]
[1644536287926,17.71994775,106.97,106.93,42.22981024]
[1644536288319,7.30688455,107.0,106.93,42.22981024]
[1644536288520,2.58929566,107.0,106.93,49.96081024]
[1644536288720,0.25,107.0,106.93,49.96081024]
[1644536288923,4.674,106.99,106.93,49.96081024]
[1644536289121,2.63188455,107.01,106.93,49.96081024]
[1644536289122,0.04258889,107.01,106.93,64.24111024]
[1644536289320,49.64529566,107.02,106.93,64.24111024]
[1644536289620,51.77158889,107.02,106.93,64.24111024]
[1644536289822,51.729,107.02,106.93,70.24111024]